[Event "*** Titled Tuesday 3|2 Blitz (Late)"]
[Site "Chess.com"]
[Date "2017.01.03"]
[Round "5"]
[White "jk13"]
[Black "andresgv36"]
[Result "1-0"]
[WhiteElo "2522"]
[BlackElo "2297"]
[TimeControl "180+2"]
[EndTime "17:59:13 PST"]
[Termination "jk13 won by resignation"]

1. d4 {[%clk 0:03:02]} 1... Nf6 {[%clk 0:03:00.7]} 2. Bf4 {[%clk 0:03:02.3]}
2... d5 {[%clk 0:02:58.9]} 3. e3 {[%clk 0:03:03.4]} 3... c5 {[%clk 0:02:59.9]}
4. Nc3 {[%clk 0:03:04]} 4... a6 {[%clk 0:02:58.7]} 5. dxc5 {[%clk 0:03:00.9]}
5... Nc6 {[%clk 0:02:56.4]} 6. Nf3 {[%clk 0:03:01.1]} 6... Bg4 {[%clk
0:02:52.2]} 7. h3 {[%clk 0:02:51.7]} 7... Bh5 {[%clk 0:02:38.9]} 8. g4 {[%clk
0:02:30.1]} 8... Bg6 {[%clk 0:02:38.4]} 9. Ne5 {[%clk 0:02:27.8]} 9... e6 {[%clk
0:02:30.6]} 10. Nxc6 {[%clk 0:02:26.1]} 10... bxc6 {[%clk 0:02:30.9]} 11. b4
{[%clk 0:02:21.2]} 11... Ne4 {[%clk 0:02:14.9]} 12. Nxe4 {[%clk 0:01:25.9]}
12... Bxe4 {[%clk 0:02:14.7]} 13. f3 {[%clk 0:01:27.4]} 13... Qh4+ {[%clk
0:02:11.1]} 14. Ke2 {[%clk 0:01:28.8]} 14... Bg6 {[%clk 0:02:05.3]} 15. Qd4
{[%clk 0:01:26.9]} 15... Be7 {[%clk 0:01:59.6]} 16. Be5 {[%clk 0:01:12.6]} 16...
f6 {[%clk 0:01:52.4]} 17. Bd6 {[%clk 0:01:13.4]} 17... e5 {[%clk 0:01:34]} 18.
Qc3 {[%clk 0:01:11.1]} 18... Qg3 {[%clk 0:01:08.4]} 19. h4 {[%clk 0:00:51]}
19... d4 {[%clk 0:00:47]} 20. exd4 {[%clk 0:00:38.8]} 20... Bxd6 {[%clk
0:00:28.1]} 21. cxd6 {[%clk 0:00:40.7]} 21... O-O {[%clk 0:00:19.4]} 22. Rh3
{[%clk 0:00:41.2]} 22... Qf4 {[%clk 0:00:19.7]} 23. Qe3 {[%clk 0:00:42.4]} 23...
Rfe8 {[%clk 0:00:13.1]} 24. Qxf4 {[%clk 0:00:40.6]} 24... exf4+ {[%clk
0:00:14.1]} 25. Kd2 {[%clk 0:00:42.2]} 25... Rad8 {[%clk 0:00:15.2]} 26. Bxa6
{[%clk 0:00:41.4]} 26... Rxd6 {[%clk 0:00:14.6]} 27. Bc4+ {[%clk 0:00:41.5]}
27... Kf8 {[%clk 0:00:15.6]} 28. c3 {[%clk 0:00:42.3]} 28... Re7 {[%clk
0:00:13.3]} 29. h5 {[%clk 0:00:40.9]} 29... Bf7 {[%clk 0:00:14.2]} 30. Bxf7
{[%clk 0:00:39.8]} 30... Kxf7 {[%clk 0:00:16.1]} 31. a4 {[%clk 0:00:37.8]} 31...
Rde6 {[%clk 0:00:17.2]} 32. a5 {[%clk 0:00:38.3]} 32... Re2+ {[%clk 0:00:16.5]}
33. Kd3 {[%clk 0:00:39.4]} 33... R2e3+ {[%clk 0:00:12.7]} 34. Kc4 {[%clk
0:00:40.3]} 34... Ra7 {[%clk 0:00:04.1]} 35. Ra3 {[%clk 0:00:39.2]} 35... Ke7
{[%clk 0:00:05.3]} 36. Kc5 {[%clk 0:00:40.4]} 36... Kd7 {[%clk 0:00:06.4]} 37.
Kb6 {[%clk 0:00:40.9]} 37... Ra8 {[%clk 0:00:07]} 38. a6 {[%clk 0:00:41.5]}
38... Ree8 {[%clk 0:00:08.5]} 39. Kc5 {[%clk 0:00:42.2]} 39... Reb8 {[%clk
0:00:08.7]} 40. c4 {[%clk 0:00:42]} 40... Ra7 {[%clk 0:00:09.2]} 41. Rh2 {[%clk
0:00:42.9]} 41... Kc7 {[%clk 0:00:09.5]} 42. Rha2 {[%clk 0:00:43.6]} 42... Rb6
{[%clk 0:00:10.4]} 43. Ra5 {[%clk 0:00:39.5]} 43... g6 {[%clk 0:00:09.9]} 44.
hxg6 {[%clk 0:00:39.7]} 44... hxg6 {[%clk 0:00:10.8]} 45. Rh2 {[%clk 0:00:39.4]}
45... Raxa6 {[%clk 0:00:11.5]} 46. Rh7+ {[%clk 0:00:39.8]} 46... Kd8 {[%clk
0:00:12.6]} 47. Rxa6 {[%clk 0:00:40.1]} 47... Rxa6 {[%clk 0:00:13.9]} 48. Kd6
{[%clk 0:00:40.9]} 48... Ke8 {[%clk 0:00:14.2]} 49. Rc7 {[%clk 0:00:40.9]} 49...
Ra3 {[%clk 0:00:14.5]} 50. Kxc6 {[%clk 0:00:40.7]} 50... Rxf3 {[%clk 0:00:15.5]}
51. b5 {[%clk 0:00:42.3]} 51... Rb3 {[%clk 0:00:16.4]} 52. b6 {[%clk 0:00:43.6]}
52... f3 {[%clk 0:00:17]} 53. Rh7 {[%clk 0:00:41.6]} 53... f2 {[%clk 0:00:16.8]}
54. Rh1 {[%clk 0:00:43]} 54... Rb4 {[%clk 0:00:16.6]} 55. b7 {[%clk 0:00:40.6]}
55... Rxc4+ {[%clk 0:00:17.5]} 56. Kb5 {[%clk 0:00:41.8]} 56... Rxd4 {[%clk
0:00:17.3]} 57. b8=Q+ {[%clk 0:00:42.9]} 57... Rd8 {[%clk 0:00:18.2]} 58. Qf4
{[%clk 0:00:41.8]} 1-0

[Event "*** Titled Tuesday 3|2 Blitz (Late)"]
[Site "Chess.com"]
[Date "2017.01.03"]
[Round "5"]
[White "aspired"]
[Black "severomorskij"]
[Result "1/2-1/2"]
[WhiteElo "2469"]
[BlackElo "2597"]
[TimeControl "180+2"]
[EndTime "17:59:21 PST"]
[Termination "Game drawn by repetition"]

1. e4 {[%clk 0:03:02]} 1... c5 {[%clk 0:03:00.3]} 2. Nf3 {[%clk 0:03:02.6]} 2...
Nc6 {[%clk 0:03:01.4]} 3. Bb5 {[%clk 0:03:03.3]} 3... d6 {[%clk 0:03:02.3]} 4.
O-O {[%clk 0:03:03.4]} 4... Bd7 {[%clk 0:03:03.2]} 5. Re1 {[%clk 0:03:04.4]}
5... Nf6 {[%clk 0:03:03.9]} 6. c3 {[%clk 0:03:05.1]} 6... a6 {[%clk 0:03:05.1]}
7. Bf1 {[%clk 0:03:02.1]} 7... Bg4 {[%clk 0:03:05.4]} 8. h3 {[%clk 0:03:02.9]}
8... Bxf3 {[%clk 0:03:05.5]} 9. Qxf3 {[%clk 0:03:03.2]} 9... e6 {[%clk 0:03:07]}
10. d3 {[%clk 0:03:03.3]} 10... Be7 {[%clk 0:03:07.3]} 11. Nd2 {[%clk
0:03:04.6]} 11... O-O {[%clk 0:03:07.7]} 12. Qe2 {[%clk 0:03:05.3]} 12... b5
{[%clk 0:03:06.7]} 13. f4 {[%clk 0:03:01.7]} 13... d5 {[%clk 0:03:05.4]} 14. Nf3
{[%clk 0:03:01.7]} 14... c4 {[%clk 0:03:01.7]} 15. exd5 {[%clk 0:02:55.7]} 15...
exd5 {[%clk 0:02:45.4]} 16. Be3 {[%clk 0:02:42.1]} 16... Qc7 {[%clk 0:02:36]}
17. Rad1 {[%clk 0:02:37.8]} 17... Rfe8 {[%clk 0:02:36.1]} 18. Qf2 {[%clk
0:02:35.1]} 18... Bd6 {[%clk 0:02:30.2]} 19. g3 {[%clk 0:02:35.9]} 19... h6
{[%clk 0:02:25.5]} 20. Nd4 {[%clk 0:02:35.3]} 20... cxd3 {[%clk 0:02:02.3]} 21.
Bxd3 {[%clk 0:02:32.1]} 21... Ne4 {[%clk 0:02:02.4]} 22. Qf3 {[%clk 0:02:30.2]}
22... Rad8 {[%clk 0:01:37.7]} 23. Kg2 {[%clk 0:02:16.5]} 23... Bf8 {[%clk
0:01:32.3]} 24. Bg1 {[%clk 0:02:07]} 24... Nxd4 {[%clk 0:01:14.9]} 25. Bxd4
{[%clk 0:02:05.4]} 25... Qc6 {[%clk 0:01:15.9]} 26. a3 {[%clk 0:01:52.1]} 26...
Rd7 {[%clk 0:01:12.8]} 27. Re2 {[%clk 0:01:50.1]} 27... Rde7 {[%clk 0:00:57]}
28. Rde1 {[%clk 0:01:50.7]} 28... f5 {[%clk 0:00:57.1]} 29. g4 {[%clk
0:01:47.3]} 29... g6 {[%clk 0:00:54.7]} 30. gxf5 {[%clk 0:01:46.2]} 30... gxf5
{[%clk 0:00:55.6]} 31. Kh2 {[%clk 0:01:47.1]} 31... Bg7 {[%clk 0:00:47.3]} 32.
Rg1 {[%clk 0:01:43.4]} 32... Kh7 {[%clk 0:00:48.4]} 33. Qh5 {[%clk 0:01:38.4]}
33... Rf8 {[%clk 0:00:41.7]} 34. Reg2 {[%clk 0:01:33.6]} 34... Bxd4 {[%clk
0:00:36.7]} 35. cxd4 {[%clk 0:01:35.5]} 35... Rf6 {[%clk 0:00:21.4]} 36. Qh4
{[%clk 0:01:20.8]} 36... Qd6 {[%clk 0:00:20.8]} 37. Rc1 {[%clk 0:01:08.7]} 37...
Rg7 {[%clk 0:00:17.6]} 38. Rxg7+ {[%clk 0:01:06.3]} 38... Kxg7 {[%clk
0:00:19.5]} 39. Rg1+ {[%clk 0:00:49.9]} 39... Rg6 {[%clk 0:00:17.2]} 40. Rxg6+
{[%clk 0:00:49.5]} 40... Kxg6 {[%clk 0:00:17.5]} 41. Kg2 {[%clk 0:00:47.3]}
41... Qf6 {[%clk 0:00:14.3]} 42. Qxf6+ {[%clk 0:00:39.3]} 42... Kxf6 {[%clk
0:00:14.7]} 43. Kf3 {[%clk 0:00:40]} 43... Nd2+ {[%clk 0:00:05.7]} 44. Ke2
{[%clk 0:00:36.3]} 44... Nc4 {[%clk 0:00:06.3]} 45. b3 {[%clk 0:00:37.3]} 45...
Nxa3 {[%clk 0:00:06.9]} 46. Kd2 {[%clk 0:00:38.3]} 46... a5 {[%clk 0:00:07.7]}
47. Kc3 {[%clk 0:00:37.9]} 47... b4+ {[%clk 0:00:03.1]} 48. Kb2 {[%clk
0:00:38.9]} 48... Ke6 {[%clk 0:00:04]} 49. h4 {[%clk 0:00:36.7]} 49... Kf6
{[%clk 0:00:05.2]} 50. h5 {[%clk 0:00:37.7]} 50... Ke6 {[%clk 0:00:06.4]} 51.
Ka2 {[%clk 0:00:37.1]} 51... Kf6 {[%clk 0:00:06.6]} 52. Kb2 {[%clk 0:00:38.3]}
52... Ke6 {[%clk 0:00:07.9]} 53. Ka2 {[%clk 0:00:38]} 53... Kf6 {[%clk 0:00:09]}
54. Kb2 {[%clk 0:00:39.3]} 54... Ke6 {[%clk 0:00:10.2]} 1/2-1/2

[Event "*** Titled Tuesday 3|2 Blitz (Late)"]
[Site "Chess.com"]
[Date "2017.01.03"]
[Round "5"]
[White "josiwales"]
[Black "ChristopherYoo"]
[Result "1/2-1/2"]
[WhiteElo "2238"]
[BlackElo "2049"]
[TimeControl "180+2"]
[EndTime "17:59:38 PST"]
[Termination "Game drawn by repetition"]

1. e4 {[%clk 0:00:52]} 1... e5 {[%clk 0:02:59.7]} 2. Nf3 {[%clk 0:00:52.3]} 2...
Nc6 {[%clk 0:03:00.6]} 3. Bc4 {[%clk 0:00:53.2]} 3... Bc5 {[%clk 0:03:00.4]} 4.
O-O {[%clk 0:00:54.6]} 4... Nf6 {[%clk 0:03:00.9]} 5. d4 {[%clk 0:00:56]} 5...
Bxd4 {[%clk 0:03:00.2]} 6. Nxd4 {[%clk 0:00:57.3]} 6... Nxd4 {[%clk 0:03:01.6]}
7. f4 {[%clk 0:00:58.1]} 7... d6 {[%clk 0:03:03]} 8. fxe5 {[%clk 0:00:58.7]}
8... dxe5 {[%clk 0:03:04.3]} 9. Bg5 {[%clk 0:00:58.3]} 9... h6 {[%clk
0:02:35.8]} 10. Bxf6 {[%clk 0:00:53.7]} 10... gxf6 {[%clk 0:02:36.6]} 11. c3
{[%clk 0:00:53.2]} 11... Ne6 {[%clk 0:02:37.1]} 12. Qxd8+ {[%clk 0:00:53.2]}
12... Kxd8 {[%clk 0:02:35.9]} 13. Rxf6 {[%clk 0:00:52.1]} 13... Ke7 {[%clk
0:02:36.9]} 14. Rf2 {[%clk 0:00:49.7]} 14... Nf4 {[%clk 0:02:32.8]} 15. Nd2
{[%clk 0:00:47.2]} 15... Be6 {[%clk 0:02:31.3]} 16. Bxe6 {[%clk 0:00:44.3]}
16... Kxe6 {[%clk 0:02:32.4]} 17. Nf3 {[%clk 0:00:45.5]} 17... Rhg8 {[%clk
0:02:31.7]} 18. Kf1 {[%clk 0:00:41.9]} 18... Rad8 {[%clk 0:02:31.9]} 19. Nd4+
{[%clk 0:00:39.1]} 19... exd4 {[%clk 0:02:28.6]} 20. Rxf4 {[%clk 0:00:39.7]}
20... d3 {[%clk 0:02:15.3]} 21. Rd1 {[%clk 0:00:39.6]} 21... c5 {[%clk 0:02:15]}
22. c4 {[%clk 0:00:38.3]} 22... Rd4 {[%clk 0:02:13.7]} 23. b3 {[%clk 0:00:38.8]}
23... Rg6 {[%clk 0:02:08.8]} 24. Rd2 {[%clk 0:00:38]} 24... a6 {[%clk 0:01:40]}
25. Kf2 {[%clk 0:00:35.4]} 25... b5 {[%clk 0:01:29.4]} 26. cxb5 {[%clk
0:00:33.7]} 26... axb5 {[%clk 0:01:30.7]} 27. Ke3 {[%clk 0:00:35.1]} 27... Rg5
{[%clk 0:01:29.4]} 28. g3 {[%clk 0:00:35.9]} 28... f6 {[%clk 0:01:04.9]} 29.
Rxd3 {[%clk 0:00:35.2]} 29... Rxd3+ {[%clk 0:01:03.5]} 30. Kxd3 {[%clk
0:00:37.1]} 30... Rg8 {[%clk 0:01:02.7]} 31. Kc3 {[%clk 0:00:32.7]} 31... Ra8
{[%clk 0:01:02.6]} 32. Kb2 {[%clk 0:00:30.8]} 32... Rd8 {[%clk 0:01:02.3]} 33.
Kc3 {[%clk 0:00:30.8]} 33... Rd1 {[%clk 0:01:02.5]} 34. Rf5 {[%clk 0:00:29.4]}
34... Rc1+ {[%clk 0:00:56.7]} 35. Kb2 {[%clk 0:00:29.5]} 35... Rh1 {[%clk
0:00:55.8]} 36. Rxc5 {[%clk 0:00:30.1]} 36... Rxh2+ {[%clk 0:00:56.7]} 37. Ka3
{[%clk 0:00:25.6]} 37... b4+ {[%clk 0:00:55.4]} 38. Kxb4 {[%clk 0:00:26.9]}
38... Rxa2 {[%clk 0:00:56.2]} 39. Rh5 {[%clk 0:00:24.7]} 39... Rg2 {[%clk
0:00:55]} 40. Rxh6 {[%clk 0:00:25.2]} 40... Rxg3 {[%clk 0:00:56.1]} 41. Rh4
{[%clk 0:00:23]} 41... Ke5 {[%clk 0:00:53.5]} 42. Kc4 {[%clk 0:00:19.9]} 42...
Rg1 {[%clk 0:00:52.8]} 43. b4 {[%clk 0:00:20.5]} 43... Rc1+ {[%clk 0:00:53.5]}
44. Kb5 {[%clk 0:00:21.1]} 44... Kd6 {[%clk 0:00:53.7]} 45. Kb6 {[%clk
0:00:21.6]} 45... Rc6+ {[%clk 0:00:52.9]} 46. Ka5 {[%clk 0:00:21.6]} 46... Rc1
{[%clk 0:00:51.3]} 47. b5 {[%clk 0:00:22.6]} 47... Ra1+ {[%clk 0:00:37.6]} 48.
Kb6 {[%clk 0:00:22.3]} 48... Rb1 {[%clk 0:00:37.1]} 49. Rh8 {[%clk 0:00:23.1]}
49... Rb4 {[%clk 0:00:37.6]} 50. Rd8+ {[%clk 0:00:23.7]} 50... Ke7 {[%clk
0:00:38.3]} 51. Rd1 {[%clk 0:00:22.1]} 51... Rxe4 {[%clk 0:00:37.7]} 52. Kb7
{[%clk 0:00:22.7]} 52... Rb4 {[%clk 0:00:38]} 53. b6 {[%clk 0:00:23.7]} 53...
Ke6 {[%clk 0:00:38.1]} 54. Kc6 {[%clk 0:00:24]} 54... Ke5 {[%clk 0:00:37.3]} 55.
Kc5 {[%clk 0:00:24.9]} 55... Rb2 {[%clk 0:00:35.3]} 56. Re1+ {[%clk 0:00:25.9]}
56... Kf5 {[%clk 0:00:36.1]} 57. Kc6 {[%clk 0:00:26.2]} 57... Kg4 {[%clk
0:00:35.7]} 58. b7 {[%clk 0:00:26.1]} 58... f5 {[%clk 0:00:34.3]} 59. Re5 {[%clk
0:00:26.8]} 59... Rxb7 {[%clk 0:00:33.5]} 60. Kxb7 {[%clk 0:00:27.2]} 60... f4
{[%clk 0:00:34.3]} 61. Kc6 {[%clk 0:00:27.4]} 61... f3 {[%clk 0:00:34.7]} 62.
Re8 {[%clk 0:00:25]} 62... f2 {[%clk 0:00:34]} 63. Rg8+ {[%clk 0:00:25.9]} 63...
Kf3 {[%clk 0:00:34.9]} 64. Rf8+ {[%clk 0:00:27]} 64... Ke2 {[%clk 0:00:36]} 65.
Re8+ {[%clk 0:00:28.1]} 65... Kf3 {[%clk 0:00:37.4]} 66. Rf8+ {[%clk 0:00:29.2]}
66... Ke2 {[%clk 0:00:38.8]} 67. Re8+ {[%clk 0:00:30.3]} 67... Kf3 {[%clk
0:00:39.9]} 68. Rf8+ {[%clk 0:00:31.5]} 68... Ke2 {[%clk 0:00:41.3]} 69. Re8+
{[%clk 0:00:32.7]} 69... Kf3 {[%clk 0:00:42.7]} 70. Rf8+ {[%clk 0:00:33.9]}
70... Ke2 {[%clk 0:00:44.2]} 71. Re8+ {[%clk 0:00:35.2]} 1/2-1/2

[Event "*** Titled Tuesday 3|2 Blitz (Late)"]
[Site "Chess.com"]
[Date "2017.01.03"]
[Round "5"]
[White "MFBerna"]
[Black "StegariuVlad"]
[Result "1-0"]
[WhiteElo "2223"]
[BlackElo "2421"]
[TimeControl "180+2"]
[EndTime "18:00:15 PST"]
[Termination "MFBerna won by resignation"]

1. e4 {[%clk 0:02:22.9]} 1... e5 {[%clk 0:02:57.4]} 2. Nf3 {[%clk 0:02:20.9]}
2... Nc6 {[%clk 0:02:58]} 3. Bb5 {[%clk 0:02:21.2]} 3... a6 {[%clk 0:02:48.4]}
4. Ba4 {[%clk 0:02:21.4]} 4... Nf6 {[%clk 0:02:48.9]} 5. O-O {[%clk 0:02:21.7]}
5... b5 {[%clk 0:02:47.2]} 6. Bb3 {[%clk 0:02:22.1]} 6... Be7 {[%clk 0:02:48.8]}
7. Re1 {[%clk 0:02:22.7]} 7... O-O {[%clk 0:02:49.6]} 8. c3 {[%clk 0:02:22.8]}
8... d6 {[%clk 0:02:50]} 9. h3 {[%clk 0:02:23]} 9... Bb7 {[%clk 0:02:50.3]} 10.
d4 {[%clk 0:02:23.3]} 10... Nb8 {[%clk 0:02:51.4]} 11. Nbd2 {[%clk 0:02:18.9]}
11... Nbd7 {[%clk 0:02:52.1]} 12. Bc2 {[%clk 0:02:16.7]} 12... Re8 {[%clk
0:02:52.7]} 13. Nf1 {[%clk 0:02:17]} 13... Bf8 {[%clk 0:02:54.1]} 14. Ng3 {[%clk
0:02:16]} 14... g6 {[%clk 0:02:55.6]} 15. a4 {[%clk 0:02:15.3]} 15... c6 {[%clk
0:02:56.3]} 16. Bg5 {[%clk 0:02:12.6]} 16... Bg7 {[%clk 0:02:56.9]} 17. b4
{[%clk 0:02:12.2]} 17... Qc7 {[%clk 0:02:56.8]} 18. Qd2 {[%clk 0:02:06.7]} 18...
d5 {[%clk 0:02:53]} 19. axb5 {[%clk 0:02:03]} 19... axb5 {[%clk 0:02:53]} 20.
Rxa8 {[%clk 0:02:03.8]} 20... Bxa8 {[%clk 0:02:54.2]} 21. exd5 {[%clk
0:02:02.7]} 21... exd4 {[%clk 0:02:50.1]} 22. Rxe8+ {[%clk 0:02:00.3]} 22...
Nxe8 {[%clk 0:02:51.2]} 23. Nxd4 {[%clk 0:01:55.6]} 23... cxd5 {[%clk
0:02:47.4]} 24. Nxb5 {[%clk 0:01:55.7]} 24... Qc4 {[%clk 0:02:43.4]} 25. Nd4
{[%clk 0:01:52.6]} 25... Nd6 {[%clk 0:02:27.3]} 26. Bd3 {[%clk 0:01:37.6]} 26...
Qc7 {[%clk 0:02:27.3]} 27. Bf4 {[%clk 0:01:25.7]} 27... Qb6 {[%clk 0:02:26.5]}
28. Qe3 {[%clk 0:01:11.7]} 28... Nf6 {[%clk 0:01:30.3]} 29. Qe7 {[%clk
0:01:01.5]} 29... Nfe8 {[%clk 0:01:30.6]} 30. Be3 {[%clk 0:00:38.7]} 30... Bf8
{[%clk 0:01:31.1]} 31. Qh4 {[%clk 0:00:29.3]} 31... Qc7 {[%clk 0:01:23.5]} 32.
Nge2 {[%clk 0:00:24.1]} 32... Bg7 {[%clk 0:01:14.4]} 33. Qf4 {[%clk 0:00:17.5]}
33... Qe7 {[%clk 0:01:05.9]} 34. Nf3 {[%clk 0:00:14.7]} 34... Bb7 {[%clk
0:00:49.7]} 35. Bd4 {[%clk 0:00:14.7]} 35... Bf8 {[%clk 0:00:47.6]} 36. Ne5
{[%clk 0:00:11.6]} 36... Nf6 {[%clk 0:00:46.1]} 37. Nxg6 {[%clk 0:00:09.7]}
37... hxg6 {[%clk 0:00:41]} 38. Qxf6 {[%clk 0:00:09.9]} 38... Qxf6 {[%clk
0:00:42.2]} 39. Bxf6 {[%clk 0:00:11.8]} 39... Bh6 {[%clk 0:00:41.5]} 40. Bd4
{[%clk 0:00:10.9]} 40... Bd2 {[%clk 0:00:42]} 41. f3 {[%clk 0:00:09.7]} 41...
Kf8 {[%clk 0:00:37.5]} 42. Kf2 {[%clk 0:00:10.1]} 42... Ke7 {[%clk 0:00:38.7]}
43. Be3 {[%clk 0:00:10]} 43... Bxe3+ {[%clk 0:00:39]} 44. Kxe3 {[%clk
0:00:10.7]} 44... Nc8 {[%clk 0:00:37.5]} 45. Kd4 {[%clk 0:00:11]} 45... Kd6
{[%clk 0:00:39]} 46. c4 {[%clk 0:00:09.3]} 46... dxc4 {[%clk 0:00:38.8]} 47.
Bxc4 {[%clk 0:00:11.2]} 47... f6 {[%clk 0:00:39.9]} 48. Nf4 {[%clk 0:00:11]}
48... g5 {[%clk 0:00:40.9]} 49. Nh5 {[%clk 0:00:11.9]} 49... Ke7 {[%clk
0:00:41.6]} 50. Bd5 {[%clk 0:00:08.6]} 50... Ba6 {[%clk 0:00:41.6]} 51. Ng7
{[%clk 0:00:05.7]} 51... Nd6 {[%clk 0:00:42.4]} 52. Kc5 {[%clk 0:00:04.4]} 52...
Bf1 {[%clk 0:00:43]} 53. f4 {[%clk 0:00:04]} 53... gxf4 {[%clk 0:00:43.5]} 54.
Nh5 {[%clk 0:00:04.7]} 54... Nf5 {[%clk 0:00:32.9]} 55. Nxf4 {[%clk 0:00:05.2]}
55... Ne3 {[%clk 0:00:34.2]} 56. Bf3 {[%clk 0:00:05.8]} 56... Kd7 {[%clk
0:00:33.6]} 57. b5 {[%clk 0:00:06.1]} 57... Kc7 {[%clk 0:00:33.7]} 58. Nd5+
{[%clk 0:00:06.2]} 58... Nxd5 {[%clk 0:00:33.8]} 59. Bxd5 {[%clk 0:00:07.6]}
59... Be2 {[%clk 0:00:34.5]} 60. b6+ {[%clk 0:00:09.5]} 60... Kb8 {[%clk
0:00:35.6]} 61. Kd6 {[%clk 0:00:10.3]} 61... Bd3 {[%clk 0:00:35.9]} 62. Ke6
{[%clk 0:00:08.9]} 62... f5 {[%clk 0:00:37]} 63. Kf6 {[%clk 0:00:08.9]} 63... f4
{[%clk 0:00:38.4]} 64. Ke5 {[%clk 0:00:09.1]} 1-0

[Event "*** Titled Tuesday 3|2 Blitz (Late)"]
[Site "Chess.com"]
[Date "2017.01.03"]
[Round "5"]
[White "Divertissement"]
[Black "jbj"]
[Result "1/2-1/2"]
[WhiteElo "2436"]
[BlackElo "2348"]
[TimeControl "180+2"]
[EndTime "18:01:01 PST"]
[Termination "Game drawn by repetition"]

1. c4 {[%clk 0:03:02]} 1... e5 {[%clk 0:03:00.5]} 2. Nc3 {[%clk 0:03:02.9]} 2...
Bb4 {[%clk 0:03:01.5]} 3. g3 {[%clk 0:03:03.2]} 3... f5 {[%clk 0:03:01.5]} 4.
Bg2 {[%clk 0:03:04.4]} 4... Nf6 {[%clk 0:03:02.7]} 5. e3 {[%clk 0:03:04.7]} 5...
O-O {[%clk 0:03:00.7]} 6. Nge2 {[%clk 0:03:05.8]} 6... c6 {[%clk 0:02:54.8]} 7.
Qb3 {[%clk 0:03:00.8]} 7... Bxc3 {[%clk 0:02:50]} 8. Nxc3 {[%clk 0:03:01]} 8...
d6 {[%clk 0:02:45.7]} 9. O-O {[%clk 0:03:01.3]} 9... Na6 {[%clk 0:02:44.4]} 10.
d4 {[%clk 0:03:01.8]} 10... Qc7 {[%clk 0:02:43.6]} 11. d5 {[%clk 0:02:52.9]}
11... Nc5 {[%clk 0:02:43]} 12. Qc2 {[%clk 0:02:53.7]} 12... a5 {[%clk
0:02:43.6]} 13. dxc6 {[%clk 0:02:53.9]} 13... bxc6 {[%clk 0:02:43.3]} 14. b3
{[%clk 0:02:49.4]} 14... Be6 {[%clk 0:02:40.2]} 15. Ba3 {[%clk 0:02:44.8]} 15...
Nfd7 {[%clk 0:02:33.4]} 16. Rfd1 {[%clk 0:02:41.1]} 16... Rf6 {[%clk 0:02:30.4]}
17. Nb5 {[%clk 0:02:30.1]} 17... cxb5 {[%clk 0:02:20.1]} 18. Bxa8 {[%clk
0:02:30.5]} 18... Nb6 {[%clk 0:02:21.3]} 19. Bg2 {[%clk 0:02:08.3]} 19... bxc4
{[%clk 0:02:20.8]} 20. bxc4 {[%clk 0:02:04.5]} 20... Nxc4 {[%clk 0:02:20.4]} 21.
Bxc5 {[%clk 0:02:03.6]} 21... Qxc5 {[%clk 0:02:20.7]} 22. Rac1 {[%clk
0:02:00.3]} 22... f4 {[%clk 0:02:16.1]} 23. exf4 {[%clk 0:01:45.2]} 23... exf4
{[%clk 0:02:14]} 24. Bf1 {[%clk 0:01:26]} 24... d5 {[%clk 0:01:30.5]} 25. Bxc4
{[%clk 0:01:24.3]} 25... dxc4 {[%clk 0:01:32.4]} 26. Re1 {[%clk 0:00:21.3]}
26... fxg3 {[%clk 0:01:31.6]} 27. hxg3 {[%clk 0:00:22]} 27... Kf7 {[%clk
0:01:26.2]} 28. Rcd1 {[%clk 0:00:20.3]} 28... Bf5 {[%clk 0:01:24]} 29. Qe2
{[%clk 0:00:18.2]} 29... Kg6 {[%clk 0:01:18.9]} 30. Qe3 {[%clk 0:00:18.3]} 30...
Qc6 {[%clk 0:01:16.4]} 31. Rd4 {[%clk 0:00:17.4]} 31... c3 {[%clk 0:01:14.8]}
32. g4 {[%clk 0:00:17.5]} 32... Be6 {[%clk 0:01:03.5]} 33. Qd3+ {[%clk
0:00:13.8]} 33... Kf7 {[%clk 0:00:59.7]} 34. Qe3 {[%clk 0:00:06]} 34... c2
{[%clk 0:00:57.9]} 35. Rf4 {[%clk 0:00:06.1]} 35... Bxa2 {[%clk 0:00:53.4]} 36.
Rxf6+ {[%clk 0:00:06.7]} 36... gxf6 {[%clk 0:00:52.3]} 37. Rc1 {[%clk
0:00:05.1]} 37... Bd5 {[%clk 0:00:48.6]} 38. Qh6 {[%clk 0:00:03.6]} 38... Be4
{[%clk 0:00:49]} 39. f3 {[%clk 0:00:03.7]} 39... Qc5+ {[%clk 0:00:46]} 40. Kf1
{[%clk 0:00:04.6]} 40... Bd3+ {[%clk 0:00:43.5]} 41. Kg2 {[%clk 0:00:05.5]}
41... Qg5 {[%clk 0:00:38.1]} 42. Qxg5 {[%clk 0:00:04]} 42... fxg5 {[%clk
0:00:40]} 43. Kf2 {[%clk 0:00:05.6]} 43... Ke6 {[%clk 0:00:35.2]} 44. Ke3 {[%clk
0:00:06.9]} 44... Bg6 {[%clk 0:00:34.1]} 45. Ra1 {[%clk 0:00:08.2]} 45... Kd5
{[%clk 0:00:25.8]} 46. Rxa5+ {[%clk 0:00:08.6]} 46... Kc4 {[%clk 0:00:26.8]} 47.
Kd2 {[%clk 0:00:10]} 47... Kb3 {[%clk 0:00:27.3]} 48. Rxg5 {[%clk 0:00:10.3]}
48... Kc4 {[%clk 0:00:19.1]} 49. Re5 {[%clk 0:00:09.5]} 49... Kd4 {[%clk
0:00:18.8]} 50. Re1 {[%clk 0:00:11]} 50... h5 {[%clk 0:00:15.1]} 51. g5 {[%clk
0:00:09.7]} 51... Bf5 {[%clk 0:00:14.6]} 52. f4 {[%clk 0:00:11]} 52... h4 {[%clk
0:00:06]} 53. Re5 {[%clk 0:00:10.3]} 53... h3 {[%clk 0:00:02.7]} 54. Re2 {[%clk
0:00:11.9]} 54... Bg4 {[%clk 0:00:02.7]} 55. Rh2 {[%clk 0:00:12.8]} 55... Bf5
{[%clk 0:00:04]} 56. g6 {[%clk 0:00:14]} 56... Bxg6 {[%clk 0:00:04.8]} 57. Rxh3
{[%clk 0:00:15.6]} 57... Ke4 {[%clk 0:00:06.1]} 58. Rh4 {[%clk 0:00:12.7]} 58...
Kf3 {[%clk 0:00:06.5]} 59. Rh6 {[%clk 0:00:13.6]} 59... Be4 {[%clk 0:00:06.5]}
60. Rf6 {[%clk 0:00:14.7]} 60... Kg4 {[%clk 0:00:07.1]} 61. Rf8 {[%clk
0:00:06.3]} 61... Bf5 {[%clk 0:00:07.9]} 62. Rg8+ {[%clk 0:00:06.1]} 62... Kxf4
{[%clk 0:00:08.8]} 63. Rg7 {[%clk 0:00:07.3]} 63... Ke5 {[%clk 0:00:09.8]} 64.
Rc7 {[%clk 0:00:08.7]} 64... Kf6 {[%clk 0:00:10.2]} 65. Rc3 {[%clk 0:00:10.1]}
65... Ke5 {[%clk 0:00:11.1]} 66. Ke3 {[%clk 0:00:11.6]} 66... Bg6 {[%clk
0:00:10.7]} 67. Rc5+ {[%clk 0:00:12.3]} 67... Kd6 {[%clk 0:00:10.9]} 68. Kd4
{[%clk 0:00:13.7]} 68... Bh7 {[%clk 0:00:09.6]} 69. Rc3 {[%clk 0:00:14]} 69...
Ke6 {[%clk 0:00:09.1]} 70. Rc6+ {[%clk 0:00:14.7]} 70... Kd7 {[%clk 0:00:07.9]}
71. Rc5 {[%clk 0:00:14.5]} 71... Kd6 {[%clk 0:00:08.4]} 72. Rd5+ {[%clk
0:00:15.9]} 72... Ke6 {[%clk 0:00:07.9]} 73. Rc5 {[%clk 0:00:17.8]} 73... Kd6
{[%clk 0:00:09.1]} 1/2-1/2